bitfinex-derivatives/quotes_SOLF0:USTF0_20250307
["timestamp","ask_amount","ask_price","bid_price","bid_amount"]
[1741318855921,0.04515409,141.67,141.65,0.05389134]
[1741318856223,7.0583,141.66,141.65,0.05389134]
[1741318860232,7.0608,141.61,141.59,28.18]
[1741318860428,7.0608,141.61,141.58,234.9647]
[1741318860429,28.18,141.68,141.58,234.9647]
[1741318860928,28.18,141.68,141.58,232.94]
[1741318861134,7.0616,141.6,141.58,232.94]
[1741318861434,7.0616,141.6,141.58,0.05408786]
[1741318861727,0.0498478,141.6,141.58,0.05408786]
[1741318864031,7.0617,141.59,141.58,0.05408786]
[1741318866024,7.0632,141.57,141.53,52.31877461]
[1741318866425,28.18,141.6,141.53,52.31877461]
[1741318867225,28.18,141.6,141.55,0.04527736]
[1741318867226,0.05038084,141.58,141.55,0.04527736]
[1741318867425,7.11268084,141.58,141.55,7.10897736]
[1741318868926,0.05038084,141.58,141.57,7.0627]
[1741318869525,1.9891,141.63,141.61,7.0605]
[1741318869721,28.18,141.66,141.59,24.13877461]
[1741318869928,3.9926,141.7,141.59,24.13877461]
[1741318870127,28.18,141.68,141.59,24.13877461]
[1741318870628,28.18,141.68,141.6,7.061]
[1741318870629,7.0595,141.64,141.6,7.061]
[1741318870822,0.04609229,141.65,141.62,0.05275972]
[1741318871222,7.10499229,141.65,141.62,0.05275972]
[1741318871734,0.04609229,141.65,141.62,0.05275972]
[1741318872234,1.9435,141.7,141.62,24.19153433]
[1741318872435,1.9435,141.7,141.65,24.13877461]
[1741318872626,1.9435,141.7,141.65,52.31877461]
[1741318873330,0.05405824,141.69,141.66,7.10744109]
[1741318873531,0.05405824,141.69,141.66,0.04924109]
[1741318875142,0.05405824,141.69,141.66,7.10744109]
[1741318875435,0.05405824,141.69,141.66,0.04924109]
[1741318876240,7.0578,141.67,141.66,0.04924109]
[1741318876432,0.05405824,141.69,141.62,28.16]
[1741318876737,7.0586,141.66,141.62,28.16]
[1741318877131,28.16,141.7,141.62,28.16]
[1741318877638,7.0592,141.65,141.62,28.16]
[1741318877832,0.04985361,141.67,141.59,28.16]
[1741318878141,1.9512,141.66,141.59,28.16]
[1741318878339,0.05227054,141.64,141.62,0.05084142]
[1741318878936,7.11177054,141.64,141.62,0.05084142]
[1741318879139,0.05227054,141.64,141.62,0.05084142]
[1741318879839,7.11157054,141.64,141.62,0.05084142]
[1741318880038,0.05227054,141.64,141.62,0.05084142]
[1741318880830,0.05227054,141.64,141.62,7.11104142]
[1741318881745,0.05227054,141.64,141.63,7.0598]
[1741318882153,0.05227054,141.64,141.62,0.05084142]
[1741318882656,7.11177054,141.64,141.62,0.05084142]
[1741318883055,0.05227054,141.64,141.62,0.05084142]
[1741318883452,7.0598,141.63,141.62,0.05084142]
[1741318883658,0.05227054,141.64,141.58,28.16]
[1741318883953,7.0616,141.6,141.56,1.8534]
[1741318884153,7.0616,141.6,141.56,30.0134]
[1741318884359,28.16,141.66,141.56,30.0134]
[1741318884559,7.0621,141.59,141.55,240.0434]
[1741318884759,0.04548538,141.62,141.6,0.05181888]
[1741318884955,7.0616,141.6,141.55,261.14]
[1741318885153,0.05278823,141.62,141.55,261.14]
[1741318885353,28.16,141.66,141.56,0.04931894]
[1741318885559,0.05252245,141.6,141.55,261.14]
[1741318885954,0.05252245,141.6,141.56,0.04552295]
[1741318886850,0.05252245,141.6,141.57,7.0625]
[1741318889061,7.11412245,141.6,141.57,7.0625]
[1741318889564,7.0622,141.59,141.56,7.10852295]
[1741318889969,0.05252245,141.6,141.56,0.04552295]
[1741318891468,7.062,141.59,141.56,7.10852295]
[1741318891969,0.05252245,141.6,141.56,0.04552295]
[1741318892169,0.05252245,141.6,141.59,7.0617]
[1741318893273,0.05252245,141.6,141.57,7.0624]
[1741318893573,0.05252245,141.6,141.56,0.04552295]
[1741318894369,0.05252245,141.6,141.58,7.062]
[1741318894976,0.05252245,141.6,141.56,0.04552295]
[1741318894977,0.05252245,141.6,141.57,7.0625]
[1741318895178,0.05252245,141.6,141.56,0.04552295]
[1741318896174,0.05252245,141.6,141.57,7.0624]
[1741318896376,0.05252245,141.6,141.56,0.04552295]
[1741318898275,7.0625,141.58,141.56,0.04552295]
[1741318898874,7.0619,141.59,141.56,0.04552295]
[1741318899367,0.05252245,141.6,141.56,0.04552295]
[1741318900969,7.0623,141.58,141.56,0.04552295]
[1741318901171,0.05252245,141.6,141.56,0.04552295]
[1741318902274,7.0626,141.58,141.56,0.04552295]
[1741318904776,7.0627,141.57,141.56,0.04552295]
[1741318905478,0.05252245,141.6,141.51,28.16]
[1741318905479,30.1892,141.59,141.51,28.16]
[1741318905675,1.8965,141.58,141.51,28.16]
[1741318905882,7.0628,141.57,141.54,7.0639]
[1741318906470,7.1118971,141.57,141.54,7.11507726]
[1741318906877,0.0490971,141.57,141.54,0.05117726]
[1741318907583,7.0637,141.56,141.54,0.05117726]
[1741318908583,0.0490971,141.57,141.54,0.05117726]
[1741318908883,7.0637,141.55,141.54,0.05117726]
[1741318909083,0.0490971,141.57,141.49,233.04]
[1741318909291,13.20331048,141.57,141.49,233.04]
[1741318909590,13.20331048,141.57,141.5,7.0662]
[1741318909777,2.0426,141.56,141.5,7.0662]
[1741318909975,7.065,141.53,141.5,7.0662]
[1741318910285,7.11549374,141.53,141.5,7.10994357]
[1741318910487,7.0653,141.52,141.5,0.04374357]
[1741318911382,0.05049374,141.53,141.5,0.04374357]
[1741318911879,0.05049374,141.53,141.43,2.0358]
[1741318912088,41.36331048,141.55,141.44,13.20331048]
[1741318912480,7.0666,141.5,141.46,7.0679]
[1741318912676,41.36331048,141.55,141.44,13.20331048]
[1741318912877,28.16,141.55,141.46,13.20331048]
[1741318913077,0.05094264,141.51,141.49,7.0663]
[1741318913285,0.05094264,141.51,141.47,28.16]
[1741318913584,0.05094264,141.51,141.49,18.86699559]
[1741318913775,0.05094264,141.51,141.5,7.0662]
[1741318916389,0.05094264,141.51,141.49,7.0665]
[1741318917282,0.05094264,141.51,141.47,28.16]
[1741318917283,7.11694264,141.51,141.47,28.16]
[1741318918096,0.05094264,141.51,141.45,30.19658143]
[1741318918282,0.05094264,141.51,141.46,28.16]
[1741318918989,7.0666,141.5,141.46,35.2281]
[1741318919187,0.05094264,141.51,141.46,35.2281]
[1741318919391,7.0668,141.49,141.46,28.16]
[1741318919990,7.0664,141.5,141.46,35.2278]
[1741318920797,0.05094264,141.51,141.45,30.19658143]
[1741318920798,7.0676,141.48,141.45,30.19658143]
[1741318920993,28.16,141.54,141.45,28.16]
[1741318921297,0.04605568,141.48,141.45,28.16]
[1741318921491,7.0652,141.52,141.45,58.35658143]
[1741318921799,0.04968856,141.48,141.45,58.35658143]
[1741318921990,0.04968856,141.48,141.47,7.0677]
[1741318923186,1.9266,141.55,141.45,58.35658143]
[1741318923399,1.9266,141.55,141.52,7.0651]
[1741318923597,1.9266,141.55,141.49,28.16]
[1741318923795,1.9266,141.55,141.49,35.2266]
[1741318923990,7.0651,141.53,141.49,35.2266]
[1741318924390,7.0651,141.53,141.5,0.04968856]
[1741318924588,7.11474282,141.52,141.5,0.04968856]
[1741318925095,0.04914282,141.52,141.5,0.04968856]
[1741318925295,7.11444282,141.52,141.5,0.04968856]
[1741318925693,0.04914282,141.52,141.5,0.04968856]
[1741318926599,0.04914282,141.52,141.51,7.0657]
[1741318927590,2.0292,141.59,141.56,7.0631]
[1741318927787,2.0292,141.59,141.51,291.53658143]
[1741318928093,2.0292,141.59,141.51,261.34]
[1741318928298,7.0631,141.57,141.51,261.34]
[1741318928487,2.0292,141.59,141.52,7.0651]
[1741318928690,0.04599151,141.55,141.53,0.04584456]
[1741318928891,7.11019151,141.55,141.53,0.04584456]
[1741318929492,7.0642,141.54,141.53,0.04584456]
[1741318929693,0.04599151,141.55,141.53,0.04584456]
[1741318930791,0.04599151,141.55,141.53,7.11044456]
[1741318931799,0.04599151,141.55,141.54,7.0642]
[1741318939501,0.04599151,141.55,141.53,0.04584456]
[1741318940900,0.04599151,141.55,141.54,7.0642]
[1741318941694,0.04599151,141.55,141.53,0.04584456]
[1741318942106,7.0642,141.54,141.53,0.04584456]
[1741318945201,0.04599151,141.55,141.53,0.04584456]
[1741318945396,7.10999151,141.55,141.53,0.04584456]
[1741318945601,0.04599151,141.55,141.53,0.04584456]
[1741318945913,0.04599151,141.55,141.54,7.0642]
[1741318947705,0.04599151,141.55,141.54,35.2042]
[1741318949207,0.04599151,141.55,141.54,28.14]
[1741318949405,0.04599151,141.55,141.53,0.04584456]
[1741318949911,0.04599151,141.55,141.53,7.11024456]
[1741318950508,0.04599151,141.55,141.53,0.04584456]
[1741318950712,0.04599151,141.55,141.54,7.0642]
[1741318953208,105.74572975,141.66,141.58,7.0621]
[1741318953408,7.061,141.61,141.57,28.14]
[1741318953711,24.58480815,141.65,141.57,28.14]
[1741318954322,7.0608,141.61,141.6,0.04769903]
[1741318954618,28.1850277,141.62,141.54,261.26]
[1741318954808,18.86040815,141.61,141.54,233.12]
[1741318955006,28.1850277,141.62,141.52,28.14]
[1741318955007,18.86040815,141.59,141.52,28.14]
[1741318955313,3.8771,141.58,141.52,28.14]
[1741318955819,0.04994516,141.56,141.54,0.05355474]
[1741318956219,7.0637,141.55,141.54,0.05355474]
[1741318956612,18.86040815,141.55,141.44,58.90604361]
[1741318956811,7.0667,141.49,141.45,28.14]
[1741318957017,7.0667,141.49,141.45,35.2087]
[1741318957310,18.86040815,141.55,141.45,28.14]
[1741318957506,18.86040815,141.55,141.45,35.2087]
[1741318957710,0.04956673,141.51,141.49,0.04356912]
[1741318958118,7.0666,141.5,141.49,0.04356912]
[1741318963624,7.0685,141.46,141.43,30.1631]
[1741318964423,22.67570815,141.51,141.42,251.98040815]
[1741318964628,0.05277178,141.48,141.42,233.12]
[1741318965924,7.0686,141.46,141.42,240.1899]
[1741318966320,0.05277178,141.48,141.42,240.1899]
[1741318966925,7.0684,141.46,141.42,240.1899]
[1741318967419,7.0684,141.46,141.43,7.0697]
[1741318967626,0.05277178,141.48,141.44,28.14]
[1741318967821,0.05277178,141.48,141.44,47.00040815]
[1741318968432,0.05277178,141.48,141.46,7.0678]
[1741318970226,0.05277178,141.48,141.39,18.86040815]
[1741318970427,18.86040815,141.49,141.4,28.14]
[1741318970626,0.05252597,141.45,141.4,28.14]
[1741318971131,7.0692,141.44,141.41,7.0705]
[1741318971630,0.05252597,141.45,141.42,7.0702]
[1741318973128,0.05252597,141.45,141.41,18.86040815]
[1741318973332,0.05252597,141.45,141.43,18.86040815]
[1741318973731,0.05252597,141.45,141.44,35.2092]
[1741318974325,1.8652,141.51,141.44,28.14]
[1741318974525,28.14,141.55,141.47,18.86040815]
[1741318974830,28.14,141.55,141.48,28.14]
[1741318975227,3.9325,141.56,141.49,18.86040815]
[1741318975429,0.05280959,141.52,141.5,0.05022452]
[1741318975835,0.05280959,141.52,141.5,7.11632452]
[1741318976131,0.05280959,141.52,141.5,0.05022452]
[1741318976631,0.05280959,141.52,141.5,7.11642452]
[1741318977623,7.0657,141.51,141.5,0.05022452]
[1741318978028,0.05280959,141.52,141.46,28.14]
[1741318978430,0.05280959,141.52,141.42,28.14]
[1741318978630,20.73480815,141.53,141.42,35.2101]
[1741318978934,18.86040815,141.51,141.42,7.0701]
[1741318979133,7.0689,141.45,141.42,7.0701]
[1741318979535,7.12116911,141.45,141.42,7.0701]
[1741318979737,0.05226911,141.45,141.41,47.00040815]
[1741318980430,0.05226911,141.45,141.41,35.2105]
[1741318980835,0.05226911,141.45,141.41,28.14]
[1741318981530,7.0696,141.44,141.41,28.14]
[1741318982140,0.05226911,141.45,141.41,47.00040815]
[1741318982741,0.05226911,141.45,141.41,7.0707]
[1741318983239,0.05226911,141.45,141.42,7.0699]
[1741318983735,7.12136911,141.45,141.39,280.22040815]
[1741318984236,7.12136911,141.45,141.41,7.0704]
[1741318985041,7.0694,141.44,141.41,7.0704]
[1741318985840,7.0694,141.44,141.4,7.071]
[1741318986738,0.05226911,141.45,141.39,287.29190815]
[1741318987334,7.0701,141.43,141.39,287.29190815]
[1741318988843,0.05226911,141.45,141.39,280.22040815]
[1741318989144,0.05226911,141.45,141.41,18.86040815]
[1741318989442,0.05226911,141.45,141.43,7.0697]
[1741318989643,0.05226911,141.45,141.41,18.86040815]
[1741318990338,0.05226911,141.45,141.44,7.0692]
[1741318991344,9.0651,141.5,141.47,7.0674]
[1741318991536,1.9987,141.5,141.43,28.14]
[1741318991938,1.9987,141.5,141.44,18.86040815]
[1741318992437,0.04485246,141.48,141.46,0.04521737]
[1741318993240,0.04485246,141.48,141.46,7.11301737]
[1741318993641,0.04485246,141.48,141.46,18.90562552]
[1741318993945,0.04485246,141.48,141.47,7.0677]
[1741318994145,0.04485246,141.48,141.46,18.90562552]
[1741318994347,0.04485246,141.48,141.46,0.04521737]
[1741318995049,7.0677,141.47,141.46,0.04521737]
[1741318995347,0.04485246,141.48,141.46,0.04521737]
[1741318995842,0.04485246,141.48,141.47,7.0677]
[1741318996450,0.04485246,141.48,141.47,35.1877]
[1741318996643,28.12,141.54,141.5,7.066]
[1741318996844,7.0652,141.52,141.47,28.12]
[1741318997148,28.12,141.54,141.47,28.12]
[1741318997448,7.065,141.53,141.5,7.0661]
[1741318997844,7.11898288,141.53,141.5,7.11125902]
[1741318999152,0.05398288,141.53,141.5,0.04515902]
[1741318999450,7.0653,141.52,141.5,0.04515902]
[1741318999857,7.0657,141.51,141.5,0.04515902]
[1741319000552,7.0655,141.52,141.5,0.04515902]
[1741319000753,0.05398288,141.53,141.5,0.04515902]
[1741319001148,7.0652,141.52,141.5,0.04515902]
[1741319001647,7.11888288,141.53,141.5,7.11125902]
[1741319001950,0.05398288,141.53,141.5,0.04515902]
[1741319002352,0.05398288,141.53,141.52,7.0652]
[1741319003854,0.05398288,141.53,141.51,35.1854]
[1741319008158,7.11898288,141.53,141.51,28.12]
[1741319008360,0.05398288,141.53,141.5,0.04515902]
[1741319010654,7.0656,141.52,141.5,0.04515902]
[1741319010853,0.05398288,141.53,141.5,0.04515902]
[1741319011459,7.0657,141.51,141.5,0.04515902]
[1741319012463,7.11918288,141.53,141.5,0.04515902]
[1741319013865,7.0653,141.52,141.5,0.04515902]
[1741319014164,0.05398288,141.53,141.5,0.04515902]
[1741319014658,7.0657,141.51,141.5,0.04515902]
[1741319018561,0.05398288,141.53,141.45,28.1]
[1741319018759,7.0682,141.46,141.45,28.1]
[1741319019064,18.86040815,141.53,141.45,28.1]
[1741319019366,18.86040815,141.53,141.44,46.96040815]
[1741319019763,0.05415331,141.5,141.42,253.94740815]
[1741319019964,0.05415331,141.5,141.47,0.04562433]
[1741319020360,7.0672,141.48,141.47,0.04562433]
[1741319024169,0.05415331,141.5,141.42,233.18]
[1741319024367,46.96040815,141.51,141.42,233.18]
[1741319025164,0.04504563,141.48,141.42,233.18]
[1741319025670,1.98394563,141.48,141.42,233.18]
[1741319025863,7.0694,141.44,141.42,233.18]
[1741319026070,1.9389,141.48,141.42,233.18]
[1741319026374,1.9389,141.48,141.39,1.9775]
[1741319026375,0.04987488,141.44,141.39,1.9775]
[1741319026567,7.07,141.43,141.39,9.049]
[1741319027674,7.07,141.43,141.39,7.0715]
[1741319028566,7.07,141.43,141.4,7.0711]
[1741319028773,7.11927488,141.44,141.4,7.0711]
[1741319028969,0.04987488,141.44,141.39,18.86040815]
[1741319029171,0.04987488,141.44,141.42,7.0699]
[1741319029368,0.04987488,141.44,141.39,18.86040815]
[1741319029567,0.04987488,141.44,141.41,7.0704]
[1741319029775,0.04987488,141.44,141.39,18.86040815]
[1741319030773,0.04987488,141.44,141.42,7.0702]
[1741319031369,0.04987488,141.44,141.37,28.1]
[1741319031564,28.1,141.47,141.38,18.86040815]
[1741319031773,28.1,141.47,141.35,236.48136461]
[1741319031774,7.0709,141.41,141.37,7.0725]
[1741319032271,0.0475777,141.42,141.36,18.86040815]
[1741319032479,7.0716,141.4,141.36,18.86040815]
[1741319032676,0.0475777,141.42,141.36,18.86040815]
[1741319032881,7.0709,141.41,141.37,7.0724]
[1741319033075,0.0475777,141.42,141.36,18.86040815]
[1741319033376,7.0722,141.39,141.35,242.3245]
[1741319033574,4.035,141.42,141.35,242.3245]
[1741319033775,0.05273456,141.38,141.35,242.3245]
[1741319034077,0.05273456,141.38,141.35,235.2509]
[1741319034277,0.05273456,141.38,141.35,240.3134]
[1741319034775,0.05273456,141.38,141.35,233.24]
[1741319035376,7.0727,141.37,141.33,35.1742]
[1741319035781,0.05273456,141.38,141.32,30.51443289]
[1741319035984,0.05273456,141.38,141.32,20.71200815]
[1741319036889,0.05273456,141.38,141.34,7.074]
[1741319037488,7.12503456,141.38,141.34,7.074]
[1741319037688,0.05273456,141.38,141.35,7.0737]
[1741319038192,0.05273456,141.38,141.34,7.0739]
[1741319039189,7.12513456,141.38,141.32,20.71200815]
[1741319039384,0.05273456,141.38,141.32,20.71200815]
[1741319039583,0.05273456,141.38,141.37,7.0727]
[1741319039795,0.05273456,141.38,141.35,28.1]
[1741319040086,7.12503456,141.38,141.35,28.1]
[1741319040290,7.12503456,141.38,141.35,35.1733]
[1741319040492,7.12503456,141.38,141.35,28.1]
[1741319041196,0.05273456,141.38,141.31,18.86040815]
[1741319041386,0.05273456,141.38,141.22,52.97113546]
[1741319041387,18.91314271,141.38,141.27,20.83250815]
[1741319041581,18.86040815,141.36,141.27,27.91010815]
[1741319041786,0.0463838,141.34,141.26,28.1]
[1741319042392,0.0463838,141.34,141.27,18.86040815]
[1741319042688,31.9834,141.35,141.3,7.0759]
[1741319042886,0.05338504,141.32,141.31,18.86040815]
[1741319043197,1.8908,141.39,141.33,7.0743]
[1741319043386,8.9627,141.39,141.33,18.86040815]
[1741319043691,1.8908,141.39,141.33,25.93490815]
[1741319043886,1.8908,141.39,141.33,18.86040815]
[1741319044089,28.1,141.41,141.33,18.86040815]
[1741319044284,0.05064875,141.37,141.35,0.0465438]
[1741319045084,0.05064875,141.37,141.36,7.0732]
[1741319047889,7.0706,141.42,141.35,30.29961474]
[1741319048194,2.0166,141.46,141.38,30.25307094]
[1741319048394,31.9892,141.47,141.38,58.35307094]
[1741319048606,7.0694,141.44,141.4,7.071]
[1741319048892,31.9892,141.47,141.38,58.35307094]
[1741319049195,0.0465163,141.43,141.41,7.11526621]
[1741319049389,0.0465163,141.43,141.41,0.04456621]
[1741319049694,0.0465163,141.43,141.42,7.0702]
[1741319050595,28.1,141.49,141.45,7.0684]
[1741319050989,35.1671,141.49,141.45,7.0684]
[1741319051185,28.1,141.49,141.44,7.0691]
[1741319051389,28.1,141.49,141.42,28.1]
[1741319051794,0.05223075,141.47,141.44,0.04670301]
[1741319052997,0.05223075,141.47,141.46,7.0682]
[1741319053191,0.05223075,141.47,141.46,35.1482]
[1741319053399,7.0656,141.52,141.46,28.08]
[1741319053992,10.954,141.53,141.46,28.08]
[1741319054494,0.05112561,141.51,141.48,0.04506466]
[1741319056899,7.11722561,141.51,141.48,0.04506466]
[1741319057302,0.05112561,141.51,141.48,0.04506466]
[1741319057897,7.0663,141.5,141.48,0.04506466]
[1741319058697,0.05112561,141.51,141.48,0.04506466]
[1741319059399,7.0667,141.49,141.48,0.04506466]
[1741319059900,0.05112561,141.51,141.48,0.04506466]
[1741319060796,7.0662,141.5,141.48,0.04506466]
[1741319061299,0.05112561,141.51,141.48,0.04506466]
[1741319061604,7.0667,141.49,141.48,0.04506466]
[1741319062199,7.0665,141.5,141.48,0.04506466]
[1741319062495,0.05112561,141.51,141.48,0.04506466]
[1741319062901,7.0667,141.49,141.48,0.04506466]
[1741319063806,0.05112561,141.51,141.48,0.04506466]
[1741319064204,7.0667,141.49,141.48,0.04506466]
[1741319067504,22.74997274,141.5,141.41,233.34]
[1741319067710,3.864,141.5,141.43,18.88597274]
[1741319068412,3.864,141.5,141.42,28.06]
[1741319068610,0.05375326,141.47,141.45,0.05098097]
[1741319069112,28.11375326,141.47,141.41,233.34]
[1741319069512,0.05375326,141.47,141.43,18.88597274]
[1741319069698,0.05375326,141.47,141.45,18.88597274]
[1741319069899,0.05375326,141.47,141.46,7.0682]
[1741319070211,28.06,141.55,141.45,18.9355435]
[1741319070510,28.06,141.55,141.45,18.88597274]
[1741319071307,0.05421404,141.51,141.49,0.05349293]
[1741319071711,7.0662,141.5,141.49,0.05349293]
[1741319072106,0.05421404,141.51,141.44,28.06]
[1741319072411,7.0687,141.45,141.44,28.06]
[1741319072811,7.0685,141.46,141.44,28.06]
[1741319073209,7.0685,141.46,141.42,1.9588]
[1741319073413,0.04708758,141.46,141.44,0.04739546]
[1741319073813,7.11538758,141.46,141.44,0.04739546]
[1741319074113,0.04708758,141.46,141.44,0.04739546]
[1741319074705,7.0687,141.45,141.44,0.04739546]
[1741319075207,0.04708758,141.46,141.44,0.04739546]
[1741319075612,0.04708758,141.46,141.45,7.0687]
[1741319075813,0.04708758,141.46,141.45,25.95467274]
[1741319079717,3.9196,141.53,141.47,7.0674]
[1741319080114,3.9196,141.53,141.47,35.1274]
[1741319080418,7.0665,141.5,141.47,35.1274]
[1741319080916,7.0671,141.49,141.47,28.10914558]
[1741319081117,0.0465216,141.5,141.47,28.10914558]
[1741319082320,7.1130216,141.5,141.47,28.10914558]
[1741319082819,7.1130216,141.5,141.47,35.17674558]
[1741319083020,0.0465216,141.5,141.47,28.10914558]
[1741319083219,7.0672,141.49,141.47,28.10914558]
[1741319084217,0.0465216,141.5,141.47,28.10914558]
[1741319084820,0.0465216,141.5,141.47,35.17664558]
[1741319085021,7.1129216,141.5,141.47,35.17664558]
[1741319086622,7.1129216,141.5,141.47,28.10914558]
[1741319087025,0.0465216,141.5,141.47,28.10914558]
[1741319087621,7.1131216,141.5,141.47,28.10914558]
[1741319088525,0.0465216,141.5,141.47,28.10914558]
[1741319089421,0.0465216,141.5,141.49,7.0667]
[1741319089621,0.0465216,141.5,141.47,46.99511832]
[1741319090931,0.0465216,141.5,141.48,7.067]
[1741319091723,0.0465216,141.5,141.47,46.99511832]
[1741319092031,0.0465216,141.5,141.47,54.06261832]
[1741319092245,0.0465216,141.5,141.47,46.99511832]
[1741319092446,0.0465216,141.5,141.48,7.0672]
[1741319094446,0.0465216,141.5,141.49,7.0667]
[1741319095855,0.0465216,141.5,141.47,46.99511832]
[1741319096145,0.0465216,141.5,141.48,7.067]
[1741319096842,0.0465216,141.5,141.47,46.99511832]
[1741319097043,0.0465216,141.5,141.49,7.0667]
[1741319098639,7.0668,141.49,141.47,46.99511832]
[1741319098839,7.0668,141.49,141.47,28.10914558]
[1741319100147,0.0465216,141.5,141.47,28.10914558]
[1741319100348,7.0672,141.48,141.47,0.04914558]
[1741319101144,0.0465216,141.5,141.47,18.93511832]
[1741319101444,0.0465216,141.5,141.49,18.88597274]
[1741319101834,0.0465216,141.5,141.47,0.04914558]
[1741319102442,7.0672,141.48,141.47,0.04914558]
[1741319103242,7.0698,141.43,141.39,28.04]
[1741319103541,20.86177274,141.47,141.38,9.80242474]
[1741319103847,7.0711,141.41,141.38,9.80242474]
[1741319104042,20.86177274,141.47,141.38,9.80242474]
[1741319104246,0.04780219,141.41,141.38,9.85106976]
[1741319104447,20.86177274,141.47,141.38,9.80242474]
[1741319104646,0.04458665,141.41,141.38,9.85531477]
[1741319104946,1.9758,141.47,141.39,7.0715]
[1741319105137,7.0696,141.44,141.39,7.0715]
[1741319105340,7.11799803,141.44,141.42,0.0521765]
[1741319105941,7.0697,141.43,141.42,0.0521765]
[1741319106739,0.04839803,141.44,141.33,57.6972082]
[1741319106939,18.88597274,141.41,141.33,38.81123546]
[1741319107351,7.0737,141.36,141.33,38.81123546]
[1741319107647,1.8731,141.4,141.33,38.81123546]
[1741319107841,1.8731,141.4,141.33,38.86135417]
[1741319107842,7.0737,141.35,141.33,38.86135417]
[1741319108040,0.0543354,141.36,141.33,38.86135417]
[1741319108644,0.0543354,141.36,141.32,77.53305804]
[1741319108852,18.88597274,141.35,141.32,26.33101221]
[1741319109149,18.88597274,141.35,141.31,99.48384285]
[1741319109337,18.88597274,141.33,141.25,9.70195872]
[1741319109540,18.88597274,141.29,141.25,9.70195872]
[1741319109748,7.0782,141.26,141.25,9.70195872]
[1741319110138,35.1698919,141.28,141.25,9.70195872]
[1741319110344,28.0925919,141.28,141.25,9.70195872]
[1741319113051,28.0925919,141.28,141.25,7.0787]
[1741319113247,28.0925919,141.28,141.23,18.88597274]
[1741319114346,0.0525919,141.28,141.23,18.88597274]
[1741319114552,0.0525919,141.28,141.25,18.88597274]
[1741319115250,7.0757,141.32,141.27,7.0774]
[1741319115448,7.0753,141.32,141.25,18.88597274]
[1741319115751,28.04,141.33,141.25,18.88597274]
[1741319115947,18.88597274,141.38,141.27,18.88597274]
[1741319116154,28.06,141.35,141.28,2.0137]
[1741319116447,28.06,141.35,141.3,0.04755904]
[1741319116448,0.0507353,141.33,141.3,0.04755904]
[1741319116750,18.88597274,141.32,141.17,29.29203285]
[1741319117054,18.88597274,141.25,141.18,4.009]
[1741319117252,18.88597274,141.25,141.15,18.88597274]
[1741319117253,7.0821,141.19,141.13,20.90057274]
[1741319117449,18.88597274,141.23,141.16,7.0832]
[1741319117648,28.06,141.25,141.17,18.88597274]
[1741319117954,0.05407507,141.21,141.17,18.88597274]
[1741319118153,0.05407507,141.21,141.19,7.0817]
[1741319119452,0.05407507,141.21,141.16,28.06]
[1741319120154,0.05407507,141.21,141.17,7.0827]
[1741319120447,0.05407507,141.21,141.13,36.35095276]
[1741319120647,0.05407507,141.21,141.13,64.41095276]
[1741319120852,0.05407507,141.21,141.16,30.32735276]
[1741319121052,0.05407507,141.21,141.17,28.06]
[1741319121450,0.05407507,141.21,141.14,28.06]
[1741319121649,58.38735276,141.2,141.07,30.32735276]
[1741319121855,7.0847,141.14,141.09,7.0864]
[1741319122059,0.05344155,141.15,141.07,1.935]
[1741319122356,28.06,141.16,141.12,7.0852]
[1741319122551,28.06,141.19,141.1,28.06]
[1741319122747,28.06,141.19,141.13,0.05253604]
[1741319122956,35.1419,141.19,141.15,7.0836]
[1741319123157,28.06,141.19,141.13,0.05253604]
[1741319123454,28.06,141.22,141.19,7.0817]
[1741319123750,28.10847025,141.22,141.15,30.32735276]
[1741319123949,28.06,141.22,141.19,0.05129808]
[1741319124252,28.06,141.29,141.19,28.11129808]
[1741319124557,7.0776,141.28,141.19,28.06]
[1741319124859,28.06,141.3,141.2,2.0048]
[1741319125157,28.9681,141.32,141.25,7.0783]
[1741319125546,0.05143162,141.3,141.27,0.05096896]
[1741319126750,28.08,141.36,141.27,28.13096896]
[1741319126945,28.08,141.36,141.29,30.32735276]
[1741319127659,35.1537,141.36,141.3,7.0762]
[1741319127850,28.08,141.36,141.29,30.32735276]
[1741319128051,0.05230813,141.34,141.31,0.05237887]